fUSD/lending_fUSD_20240209
["ID","MTS","AMOUNT","RATE_DAILY","PERIOD"]
[313634906,1707506561657,177.11,0.00022,2]
[313634908,1707506573433,1605.92401989,0.00022,2]
[313634909,1707506607578,500.0,0.00021941,2]
[313634910,1707506611327,625.88386743,0.00022502,2]
[313634911,1707506615200,475.46988706,0.00022502,2]
[313634912,1707506626560,1955.95022694,0.00022502,2]
[313634913,1707506638746,3344.84777178,0.00022502,2]
[313634914,1707506642051,150.0,0.00022502,2]
[313634915,1707506656202,481.09,0.00021929,2]
[313634916,1707506682551,689.86,0.00020011,2]
[313634917,1707506682810,689.86,0.00022275,2]
[313634918,1707506686548,250.0,0.00021929,2]
[313634919,1707506715286,150.0,0.00021911,2]
[313634921,1707506736432,153.97,0.00021928,2]
[313634922,1707506745950,462.35,0.00021951,2]
[313634923,1707506775393,155.0,0.00022502,2]
[313634924,1707506803648,200.0,0.00021911,2]
[313634925,1707506806690,200.0,0.00021911,2]
[313634926,1707506810061,1955.95022694,0.00022502,2]
[313634927,1707506822885,500.0,0.00027,30]
[313634928,1707506833526,200.0,0.00021911,2]
[313634929,1707506906677,811.11,0.00021941,2]
[313634930,1707506912187,5542.7476156,0.00022502,2]
[313634931,1707506917998,-1108.0,0.00022503,2]
[313634956,1707506980981,624.0,0.00021929,2]
[313634957,1707506981017,281.18,0.00021929,2]
[313634959,1707507003027,183.71,0.00022083,2]
[313634960,1707507008984,159.11,0.00021919,2]
[313634961,1707507009007,90.89,0.00021919,2]
[313634962,1707507030289,154.0,0.00021919,2]
[313634963,1707507030314,146.0,0.00021919,2]
[313634994,1707507032392,-177.11,0.00022548,2]
[313634996,1707507032401,-3506.83087238,0.00022698,2]
[313634998,1707507032413,-2035.91674322,0.00022698,2]
[313635000,1707507032422,-300.0,0.00022698,2]
[313635002,1707507032431,-150.0,0.00022698,2]
[313635004,1707507032440,-7308.77093174,0.00022699,2]
[313635006,1707507032452,-17441.31856826,0.00022699,2]
[313635008,1707507032462,-1923.85738887,0.00022699,2]
[313635010,1707507032471,-221.48933488,0.000227,2]
[313635011,1707507032481,-205.0,0.00022729,2]
[313635012,1707507032490,-170.27889009,0.00022789,2]
[313635013,1707507032499,-407.75428958,0.00022797,2]
[313635014,1707507032509,-475.81370008,0.00022797,2]
[313635015,1707507032519,-311.25325278,0.00022797,2]
[313635016,1707507032528,-2848.95179118,0.00022797,2]
[313635017,1707507032538,-159.19673808,0.00022797,2]
[313635018,1707507032547,-1953.17138904,0.00022797,2]
[313635019,1707507032556,-235.32159405,0.00022798,2]
[313635020,1707507032566,-500.0,0.00022798,2]
[313635021,1707507032575,-379.36037936,0.00022798,2]
[313635022,1707507032585,-8040.28,0.00022798,2]
[313635023,1707507032595,-299.99,0.00022798,7]
[313635024,1707507032604,-6348.61,0.00022798,2]
[313635025,1707507032614,-69125.48864719,0.00022799,2]
[313635026,1707507032627,-956.9078761,0.00022799,2]
[313635027,1707507032699,-14603.14500085,0.00022799,2]
[313635030,1707507038325,-47388.99999999,0.00022799,2]
[313635031,1707507038448,-40893.94569249,0.00022799,2]
[313635032,1707507038460,-42545.5532522,0.00022799,2]
[313635033,1707507038528,-729.74969985,0.00022799,2]
[313635034,1707507038540,-406.46916604,0.00022799,2]
[313635035,1707507038551,-873.48,0.00022799,2]
[313635036,1707507038604,-9488.89973459,0.00022799,2]
[313635037,1707507038616,-3465.28,0.00022799,2]
[313635038,1707507038628,-44711.81209973,0.00022799,2]
[313635039,1707507038639,-481.70408771,0.00022799,2]
[313635040,1707507038650,-326.45,0.00022799,2]
[313635041,1707507038678,-1631.5164132,0.00022799,2]
[313635042,1707507038689,-636.9005323,0.00022799,2]
[313635043,1707507038700,-52224.45531162,0.00022799,2]
[313635044,1707507038711,-3691.64847901,0.00022799,2]
[313635045,1707507038723,-1720.63230353,0.00022799,2]
[313635046,1707507038780,-6043.14688264,0.00022799,2]
[313635047,1707507038791,-2420.065971,0.00022799,2]
[313635048,1707507038802,-521.77432096,0.00022799,2]
[313635051,1707507038901,-384.24477354,0.00022799,2]
[313635172,1707507040887,-589.25106899,0.00022799,2]
[313635173,1707507040899,-315403.910617,0.00022799,2]
[313635174,1707507040909,-499.99,0.00022799,2]
[313635175,1707507040918,-73853.771,0.000228,2]
[313635176,1707507040927,-200.0,0.00022815,2]
[313635177,1707507040937,-376.8417,0.00022895,2]
[313635178,1707507040946,-34874.1207,0.00022895,2]
[313635179,1707507040956,-162.32046713,0.00022897,2]
[313635180,1707507040965,-10871.31430206,0.00022897,2]
[313635181,1707507040974,-187.78302479,0.00022897,2]
[313635182,1707507040984,-388.61263591,0.00022898,2]
[313635183,1707507040993,-247.72543542,0.00022899,2]
[313635184,1707507041003,-7505.93166988,0.000229,2]
[313635185,1707507041012,-459.45283741,0.000229,2]
[313635186,1707507041021,-7505.93166987,0.00022907,2]
[313635187,1707507041030,-459.45283739,0.00022907,2]
[313635188,1707507041039,-7505.93166987,0.00022914,2]
[313635189,1707507041049,-459.45283739,0.00022914,2]
[313635190,1707507041058,-218.01605577,0.00022993,2]
[313635191,1707507041067,-10526.77414532,0.00022993,2]
[313635192,1707507041076,-222.10743328,0.00022993,2]
[313635193,1707507041085,-3564.78781841,0.00022993,2]
[313635194,1707507041819,-2696.21341952,0.00022993,2]
[313635195,1707507041831,-18174.95654177,0.00022993,2]
[313635196,1707507041840,-355.95779342,0.00022994,2]
[313635197,1707507041849,-315.43231307,0.00022994,2]
[313635198,1707507041858,-1004.07625905,0.00022994,2]
[313635199,1707507041867,-159.26253707,0.00022994,2]
[313635201,1707507041877,-345.084011,0.00022994,2]
[313635203,1707507041886,-769.70719538,0.00022995,2]
[313635205,1707507041895,-26357.19655825,0.00022996,2]
[313635208,1707507041915,-1604.99351001,0.00022996,2]
[313635211,1707507041931,-546.83882377,0.00022996,2]
[313635213,1707507041942,-24174.97151225,0.00022996,2]
[313635215,1707507041953,-94287.49128354,0.00022996,2]
[313635217,1707507041967,-2889.00014,0.00022996,2]
[313635259,1707507043329,-11692.67956193,0.00022996,2]
[313635265,1707507043391,-737.65896984,0.00022996,2]
[313635266,1707507043452,-33123.98713958,0.00022996,2]
[313635267,1707507043462,-156.19727004,0.00022997,2]
[313635268,1707507043471,-2680.23936963,0.00022998,2]
[313635269,1707507043480,-164.06810945,0.00022998,2]
[313635270,1707507043490,-294.4682262,0.00022998,2]
[313635271,1707507043499,-158.07637874,0.00022998,2]
[313635272,1707507043509,-2787.55898513,0.00022998,2]
[313635273,1707507043523,-157.23616324,0.00022998,2]
[313635274,1707507043532,-946.08105737,0.00022998,2]
[313635275,1707507043541,-419.23035172,0.00022998,2]
[313635276,1707507043551,-168.61937043,0.00022998,2]
[313635277,1707507043560,-4796.09780552,0.00022998,2]
[313635278,1707507043568,-38135.3181785,0.00022998,2]
[313635279,1707507043578,-53933.9891486,0.00022998,2]
[313635280,1707507043586,-731.97,0.00022999,2]
[313635281,1707507043597,-501.67204489,0.00022999,2]
[313635282,1707507043606,-158.34693503,0.00022999,2]
[313635283,1707507043615,-155.49771381,0.00022999,2]
[313635284,1707507043624,-204.53560583,0.00022999,2]
[313635285,1707507043633,-281.69784795,0.00022999,2]
[313635286,1707507043642,-489.12944998,0.00022999,2]
[313635287,1707507043652,-218.78708753,0.00022999,2]
[313635288,1707507043661,-924.88050445,0.00022999,2]
[313635289,1707507043670,-155.31134145,0.00022999,2]
[313635290,1707507043679,-155.90086713,0.00022999,2]
[313635291,1707507043688,-155.0,0.00022999,2]
[313635292,1707507043698,-193.98211956,0.00022999,2]
[313635293,1707507043707,-155.0,0.00022999,2]
[313635294,1707507043716,-5488.56110842,0.00022999,2]
[313635295,1707507043726,-500.0,0.00022999,2]
[313635296,1707507043735,-264.66122128,0.00022999,2]
[313635298,1707507043744,-153.63222574,0.00022999,2]
[313635300,1707507043754,-982.3737,0.00022999,2]
[313635302,1707507043764,-206.98178586,0.00022999,2]
[313635305,1707507043773,-455.57481037,0.00022999,2]
[313635308,1707507043782,-150.0,0.00022999,2]
[313635310,1707507043791,-150.0,0.00022999,2]
[313635312,1707507043800,-150.0,0.00022999,2]
[313635313,1707507043809,-150.0,0.00022999,2]
[313635314,1707507043818,-150.0,0.00022999,2]
[313635315,1707507043827,-150.0,0.00022999,2]
[313635316,1707507043836,-150.0,0.00022999,2]
[313635317,1707507043845,-230.77860046,0.00022999,2]
[313635318,1707507043854,-150.0,0.00022999,2]
[313635319,1707507043863,-150.0,0.00022999,2]
[313635320,1707507043872,-150.0,0.00022999,2]
[313635321,1707507043881,-140513.91794126,0.00023,2]
[313635322,1707507043908,-386.73367012,0.00023,2]
[313635323,1707507043939,-395.46994464,0.00023,2]
[313635324,1707507043950,-464.9119998,0.00023,2]
[313635325,1707507044046,-388.93617367,0.00023,2]
[313635326,1707507044065,-356903.56161904,0.00023,2]
[313635340,1707507047121,-872.918448,0.00023,2]
[313635341,1707507047133,-37452.872118,0.00023,2]
[313635342,1707507047144,-38489.8427746,0.00023,2]
[313635343,1707507047155,-12371.6205,0.00023,2]
[313635344,1707507047174,-61628.6904797,0.00023,2]
[313635345,1707507047186,-12767.9459,0.00023,2]
[313635346,1707507047197,-72627.65466551,0.00023,2]
[313635347,1707507047208,-8618.5751076,0.00023,2]
[313635349,1707507108556,161.47,0.00022496,2]
[313635352,1707507161280,713.14,0.00020418,2]
[313635353,1707507165665,296.67037072,0.00022496,2]
[313635354,1707507171473,364.89997901,0.00022999,10]
[313635355,1707507171519,364.89997901,0.00022999,10]
[313635356,1707507172722,2475.70872217,0.00021562,7]
[313635357,1707507172856,5257.91463823,0.00022496,2]
[313635358,1707507175732,760.11583343,0.00022496,5]
[313635359,1707507179508,300.0,0.000224,8]
[313635360,1707507181621,600.0,0.000225,8]
[313635362,1707507187914,150.0,0.00022387,15]
[313635363,1707507191032,177.11,0.00022,2]
[313635365,1707507196880,4671.30370322,0.00020427,5]
[313635366,1707507205011,250.0,0.00021918,2]
[313635367,1707507227085,160.0003422,0.00022492,2]
[313635368,1707507249809,424.83,0.00021783,10]
[313635369,1707507250032,424.83,0.00022317,10]
[313635370,1707507250245,424.83,0.0002285,10]
[313635371,1707507250517,424.83,0.00023384,10]
[313635372,1707507250937,424.83,0.00023918,10]
[313635373,1707507259714,200.0,0.00021777,2]
[313635374,1707507272221,34341.1883,0.00022495,14]
[313635375,1707507273872,205.0,0.00021729,2]
[313635376,1707507287605,150.0,0.00021795,2]
[313635377,1707507315727,1500.0,0.00021918,7]
[313635378,1707507320506,200.0,0.00021791,2]
[313635380,1707507368247,157.51998999,0.00023798,15]
[313635382,1707507382677,1000.0,0.00021778,2]
[313635388,1707507465188,250.0,0.00021764,2]
[313635390,1707507473735,237.63381732,0.00021778,2]
[313635391,1707507483837,170.50209342,0.00021778,2]
[313635392,1707507484306,207.0,0.00021729,2]
[313635393,1707507517527,162.92,0.00021936,2]
[313635394,1707507541833,1368.01,0.00021942,2]
[313635395,1707507565903,167.05,0.00022403,2]
[313635396,1707507567399,160.0003422,0.00022424,2]
[313635397,1707507576089,384.87,0.00021741,2]
[313635400,1707507607809,205.0,0.0002226,2]
[313635401,1707507608253,205.0,0.00026977,9]
[313635402,1707507619545,677.48,0.00019816,2]
[313635403,1707507619739,677.48,0.0002208,2]
[313635404,1707507627347,2024.73,0.00021748,2]
[313635405,1707507633313,888.3,0.00021748,2]
[313635406,1707507670454,-155.0,0.00022514,2]
[313635407,1707507670475,-2149.08139043,0.00022515,2]
[313635408,1707507670496,-5542.7476156,0.00022515,2]
[313635409,1707507670518,-234.32954791,0.00022515,2]
[313635410,1707507670539,-155.0,0.00022516,2]
[313635411,1707507670560,-1377.92965017,0.00022516,2]
[313635412,1707507670580,-365.78086249,0.00022517,2]
[313635413,1707507670601,-19085.77689534,0.00022519,2]
[313635414,1707507670623,-22716.95514162,0.00022519,2]
[313635415,1707507670643,-150.0,0.00022523,2]
[313635416,1707507670664,-150.0,0.00022523,2]
[313635417,1707507670684,-14733.11368095,0.00022525,2]
[313635418,1707507670705,-177.11,0.00022548,2]
[313635419,1707507670725,-1808.2328264,0.00022592,2]
[313635420,1707507670744,-487.1124032,0.00022592,2]
[313635421,1707507670764,-499.99,0.00022592,2]
[313635422,1707507670784,-299.99,0.00022592,7]
[313635423,1707507670804,-687.353,0.00022596,2]
[313635424,1707507670825,-1685.0963,0.000226,2]
[313635425,1707507670846,-1000.0,0.000226,8]
[313635426,1707507671107,-31223.31083646,0.00022696,2]
[313635427,1707507671128,-813.85386747,0.00022697,5]
[313635428,1707507671149,-157.16716868,0.00022697,2]
[313635429,1707507671170,-156.98770958,0.00022697,2]
[313635430,1707507671189,-244.82534313,0.00022697,2]
[313635431,1707507671210,-308.75805515,0.00022697,2]
[313635432,1707507671231,-196.38680745,0.00022697,2]
[313635433,1707507671251,-3350.11903617,0.00022697,4]
[313635434,1707507671272,-157.25145536,0.00022697,2]
[313635435,1707507671295,-155.83298268,0.00022697,2]
[313635436,1707507671315,-202.76663822,0.00022697,2]
[313635437,1707507671336,-226.58331537,0.00022697,2]
[313635438,1707507671359,-216.22962887,0.00022697,2]
[313635439,1707507671379,-250.87710088,0.00022697,2]
[313635440,1707507671400,-156.15910017,0.00022697,2]
[313635441,1707507671421,-302.02240745,0.00022697,2]
[313635442,1707507671443,-302.79374032,0.00022698,2]
[313635443,1707507671465,-4650.6538,0.00022699,2]
[313635444,1707507671487,-3466.82169248,0.00022699,2]
[313635446,1707507691681,2561.70013709,0.0002247,2]
[313635447,1707507691702,4563.51973934,0.0002247,2]
[313635448,1707507700718,250.0,0.00022007,2]
[313635449,1707507788737,200.0,0.00021938,2]
[313635450,1707507802230,1500.0,0.00021951,7]
[313635451,1707507818954,177.11,0.00022,2]
[313635452,1707507820276,164.96,0.00021936,2]
[313635453,1707507851109,176.53,0.00021903,2]
[313635455,1707507881613,200.0,0.0002192,2]
[313635457,1707507916437,250.0,0.00022022,2]
[313635459,1707508040041,300.0,0.000224,8]
[313635460,1707508042131,600.0,0.000225,8]
[313635461,1707508052704,300.0,0.000269,9]
[313635462,1707508089251,161.47,0.00021917,2]
[313635486,1707508157062,609.73,0.00019986,2]
[313635487,1707508157556,609.73,0.0002225,2]
[313635490,1707508165048,250.0,0.00021918,2]
[313635512,1707508231505,-234.32954791,0.00022532,2]
[313635513,1707508231515,-159.56001747,0.00022539,2]
[313635514,1707508231525,-5542.7476156,0.0002254,2]
[313635515,1707508231535,-2149.08139043,0.00022541,2]
[313635516,1707508231545,-354.0,0.00022548,2]
[313635517,1707508231555,-400.4293,0.00022599,2]
[313635518,1707508231564,-900.0,0.000226,8]
[313635519,1707508231577,-159.88400748,0.00022697,2]
[313635520,1707508231587,-5400.95149923,0.00022698,2]
[313635521,1707508231597,-286.63150246,0.00022698,2]
[313635522,1707508231607,-161.72637899,0.00022698,2]
[313635523,1707508231617,-361.16239575,0.00022698,2]
[313635524,1707508231626,-37110.18697154,0.00022699,2]
[313635525,1707508231638,-56075.09893598,0.00022699,2]
[313635526,1707508231647,-765.96,0.00022699,2]
[313635527,1707508231656,-1200.0,0.000227,8]
[313635528,1707508231666,-155.0,0.00022768,2]
[313635529,1707508231679,-247.73314621,0.00022768,2]
[313635530,1707508231689,-499.99,0.00022768,2]
[313635531,1707508231699,-150.0,0.0002277,2]
[313635532,1707508231709,-150.0,0.0002277,2]
[313635533,1707508231719,-150.0,0.0002277,2]
[313635534,1707508231729,-150.0,0.0002277,2]
[313635535,1707508231738,-249.2501,0.0002277,2]
[313635536,1707508231748,-1500.0,0.000228,8]
[313635537,1707508231758,-200.0,0.00022815,2]
[313635538,1707508231768,-200.0,0.00022815,2]
[313635539,1707508231778,-970.48737855,0.00022828,3]
[313635540,1707508231788,-384.87,0.00022828,2]
[313635541,1707508231797,-206.0,0.00022833,2]
[313635542,1707508231806,-155.0,0.00022883,2]
[313635543,1707508231815,-1861.36645607,0.00022898,2]
[313635544,1707508231825,-31508.55335633,0.000229,2]
[313635545,1707508231843,-17596.6593575,0.000229,2]
[313635546,1707508231856,-499.95,0.000229,2]
[313635547,1707508231868,-653.000008,0.000229,2]
[313635548,1707508231880,-886.0,0.000229,2]
[313635549,1707508234009,-928.53687171,0.000229,2]
[313635550,1707508234024,-2734.84596553,0.000229,2]
[313635551,1707508234075,-4716.34426753,0.000229,2]
[313635552,1707508234087,-5970.0027734,0.000229,2]
[313635553,1707508234098,-500.0,0.000229,2]
[313635555,1707508234107,-1000.0,0.000229,2]
[313635557,1707508234117,-160.0003422,0.000229,2]
[313635559,1707508234126,-162.32046712,0.000229,2]
[313635561,1707508234136,-185.59775337,0.000229,2]
[313635563,1707508234146,-784.77450408,0.000229,2]
[313635565,1707508234155,-2290.54396485,0.000229,2]
[313635567,1707508234164,-5536.49738387,0.000229,2]
[313635569,1707508234176,-4044.32963381,0.000229,2]
[313635573,1707508234216,-1031.76632145,0.000229,2]
[313635574,1707508234228,-641.78023561,0.000229,2]
[313635575,1707508237522,-675.83229912,0.000229,2]
[313635576,1707508237531,-175.77295526,0.000229,2]
[313635577,1707508237541,-308.80388662,0.000229,2]
[313635578,1707508237550,-2672.30584405,0.000229,2]
[313635579,1707508237559,-163.80983822,0.000229,2]
[313635580,1707508237568,-300.0,0.000229,8]
[313635581,1707508237579,-160.70944928,0.0002299,2]
[313635582,1707508237588,-160.70944928,0.0002299,2]
[313635583,1707508237598,-2451.44892653,0.00022994,3]
[313635584,1707508237607,-562.86462881,0.00022994,5]
[313635585,1707508237616,-353.84330368,0.00022996,2]
[313635586,1707508237625,-371.95881086,0.00022997,2]
[313635587,1707508237634,-375.34345361,0.00022998,2]
[313635588,1707508237643,-248.08555624,0.00022998,2]
[313635589,1707508237652,-4717.78147609,0.00022998,2]
[313635590,1707508237662,-202.88062945,0.00022998,2]
[313635591,1707508237675,-6458.99227782,0.00022998,2]
[313635592,1707508237684,-326.48983353,0.00022998,2]
[313635593,1707508237694,-157.33659882,0.00022998,2]
[313635594,1707508237704,-432.71239679,0.00022998,2]
[313635595,1707508237714,-175.06642056,0.00022998,2]
[313635596,1707508237723,-743.6865163,0.00022998,2]
[313635597,1707508237731,-155.55867966,0.00022998,2]
[313635598,1707508237741,-162.3492961,0.00022998,2]
[313635599,1707508237752,-462.16379328,0.00022998,2]
[313635600,1707508237761,-156.19140517,0.00022998,2]
[313635601,1707508237770,-10538.04090761,0.00022998,2]
[313635602,1707508237779,-207.10060968,0.00022998,2]
[313635603,1707508237788,-250.52226824,0.00022998,2]
[313635604,1707508237797,-208.75325702,0.00022998,2]
[313635605,1707508237806,-526.21762846,0.00022998,2]
[313635606,1707508237816,-292.12118791,0.00022998,2]
[313635607,1707508237825,-165.86369279,0.00022998,2]
[313635608,1707508237834,-275.36632723,0.00022998,2]
[313635609,1707508237844,-421.35142671,0.00022998,2]
[313635610,1707508237853,-2789.31830158,0.00022998,2]
[313635611,1707508237862,-549.34064812,0.00022998,2]
[313635612,1707508237872,-155.0,0.00022998,2]
[313635613,1707508237881,-573.22603961,0.00022998,2]
[313635614,1707508237890,-178.72127769,0.00022998,2]
[313635615,1707508237899,-181.07852074,0.00022998,2]
[313635616,1707508237909,-197.53896978,0.00022998,2]
[313635617,1707508237917,-157.00366677,0.00022998,2]
[313635618,1707508237926,-688.6753384,0.00022998,2]
[313635619,1707508237935,-156.39541135,0.00022998,2]
[313635620,1707508237943,-3682.10997027,0.00022998,2]
[313635621,1707508237952,-306.23581506,0.00022998,2]
[313635622,1707508237961,-157.07734709,0.00022998,2]
[313635623,1707508237970,-286.19980726,0.00022998,2]
[313635624,1707508237979,-219.36744003,0.00022998,2]
[313635625,1707508237988,-3866.06682937,0.00022998,2]
[313635626,1707508237997,-155.0,0.00022998,2]
[313635627,1707508238007,-631.10009728,0.00022998,2]
[313635628,1707508238016,-338.52942998,0.00022998,2]
[313635629,1707508238025,-805.57601337,0.00022998,2]
[313635630,1707508238034,-697.32652648,0.00022998,2]
[313635631,1707508238043,-458.02256108,0.00022998,2]
[313635632,1707508238052,-201.0925004,0.00022998,2]
[313635633,1707508238061,-8694.13477272,0.00022998,2]
[313635634,1707508238070,-155.4860074,0.00022998,2]
[313635635,1707508238081,-220.15826523,0.00022998,2]
[313635636,1707508238090,-534.13363385,0.00022998,2]
[313635637,1707508238100,-185.5600203,0.00022998,2]
[313635638,1707508238109,-331.08587568,0.00022998,2]
[313635639,1707508238119,-1224.39280072,0.00022998,2]
[313635640,1707508238128,-314.41234047,0.00022998,2]
[313635641,1707508238138,-843.0,0.00022998,2]
[313635642,1707508238147,-768.8565787,0.00022998,2]
[313635643,1707508238157,-200.0,0.00022998,2]
[313635644,1707508238166,-413.3917858,0.00022998,2]
[313635645,1707508238175,-280.8204798,0.00022998,2]
[313635646,1707508238184,-18568.52989683,0.00022998,2]
[313635647,1707508238205,-2410.01001848,0.00022998,2]
[313635648,1707508238234,-759.79017447,0.00022998,2]
[313635649,1707508238246,-31661.49692012,0.00022998,2]
[313635650,1707508238255,-8157.7664351,0.00022998,2]
[313635651,1707508238264,-374.1594925,0.00022998,2]
[313635652,1707508238274,-7390.11315228,0.00022998,2]
[313635653,1707508239076,-8605.4408,0.00022998,2]
[313635654,1707508239133,-1175.46058662,0.00022998,2]
[313635655,1707508239142,-27376.23400586,0.00022998,2]
[313635656,1707508239333,-12754.37599414,0.00022998,2]
[313635657,1707508239347,-155.0,0.00022999,2]
[313635658,1707508239357,-155.0,0.00022999,2]
[313635659,1707508239366,-2943.47337633,0.00022999,2]
[313635807,1707508240937,-3151.62818832,0.00022999,2]
[313635808,1707508240946,-699.93705394,0.00022999,2]
[313635809,1707508240956,-312.03115718,0.00022999,2]
[313635810,1707508240966,-266.57926775,0.00022999,2]
[313635811,1707508240975,-155.0,0.00022999,2]
[313635812,1707508240985,-150.0,0.00022999,2]
[313635813,1707508240995,-150.0,0.00022999,2]
[313635814,1707508241004,-150.0,0.00022999,2]
[313635815,1707508241014,-150.0,0.00022999,2]
[313635816,1707508241023,-150.0,0.00022999,2]
[313635817,1707508241032,-150.0,0.00022999,2]
[313635818,1707508241040,-185.7155187,0.00022999,2]
[313635819,1707508241054,-150.0,0.00022999,2]
[313635820,1707508241063,-150.0,0.00022999,2]
[313635821,1707508241073,-13055.50881411,0.00023,2]
[313635830,1707508241945,-1032.10766431,0.00023,2]
[313635844,1707508245185,-168.2562805,0.00022998,2]
[313635845,1707508245195,-331.7437195,0.00023,2]
[313635864,1707508247514,-4199841.22445824,0.00023,2]
[313635865,1707508247523,-2359916.8614241,0.00023,2]
[313635866,1707508247532,-708828.34519668,0.00023,2]
[313635867,1707508247541,-455244.2896027,0.00023,2]
[313635868,1707508247550,-1088.9622463,0.00023,2]
[313635869,1707508247559,-500.0,0.00023014,2]
[313635870,1707508247568,-1502.73273573,0.00023097,2]
[313635871,1707508247577,-500.0,0.00023105,2]
[313635872,1707508247587,-888.3,0.00023392,2]
[313635873,1707508247597,-500.0,0.00023395,2]
[313635874,1707508247606,-11930.20587376,0.00023625,2]
[313635875,1707508247615,-500.0,0.00023684,2]
[313635876,1707508247624,-4578.05369492,0.00023915,3]
[313635877,1707508247633,-384.87,0.00023915,2]
[313635878,1707508247642,-2000.0,0.00023918,2]
[313635879,1707508247652,-200.0,0.00023918,2]
[313635880,1707508247662,-2000.0,0.00023918,2]
[313635881,1707508247676,-200.0,0.00023918,2]
[313635882,1707508247685,-500.0,0.00023973,2]
[313635883,1707508247695,-200.0,0.00023973,2]
[313635884,1707508247705,-202.03248539,0.00024,2]
[313635885,1707508247715,-517.55861363,0.00024,2]
[313635886,1707508247725,-1861.36645607,0.00024038,2]
[313635887,1707508247734,-817.43,0.00024049,2]
[313635888,1707508247744,-220.545,0.00024084,2]
[313635889,1707508247754,-495.331,0.00024084,2]
[313635890,1707508247763,-2905.0,0.00024084,2]
[313635891,1707508247772,-951.43,0.00024084,2]
[313635892,1707508247781,-1062.145,0.00024084,2]
[313635893,1707508247790,-1232.0,0.00024084,2]
[313635894,1707508247800,-1252.0,0.00024084,2]
[313635895,1707508247809,-286.75,0.00024084,2]
[313635896,1707508247818,-214.0,0.00024084,2]
[313635897,1707508247827,-428.0,0.00024084,2]
[313635898,1707508247836,-1944.0,0.00024084,2]
[313635899,1707508247845,-237.0,0.00024084,2]
[313635900,1707508247855,-1002.0,0.00024084,2]
[313635901,1707508247863,-150.0,0.00024084,2]
[313635902,1707508247872,-317.0,0.00024084,2]
[313635903,1707508247881,-861.399,0.00024084,2]
[313635904,1707508247890,-1138.0,0.00024084,2]
[313635905,1707508247899,-342.0,0.00024084,2]
[313635906,1707508247909,-2519.0,0.00024084,2]
[313635907,1707508247919,-2285.0,0.00024084,2]
[313635908,1707508247928,-8147.0,0.00024084,2]
[313635909,1707508247938,-3043.7,0.00024084,2]
[313635910,1707508247949,-7400.0,0.00024084,2]
[313635911,1707508247959,-19811.0,0.00024084,2]
[313635912,1707508247970,-2922.0,0.00024084,2]
[313635913,1707508247980,-1035.0,0.00024084,2]
[313635914,1707508247990,-165.385,0.00024084,2]
[313635915,1707508248001,-161.47,0.00024109,2]
[313635916,1707508248012,-2000.0,0.00024157,2]
[313635917,1707508248021,-200.0,0.00024157,2]
[313635918,1707508248033,-167.05,0.00024251,2]
[313635919,1707508248043,-166.96882288,0.000243,2]
[313635920,1707508248054,-1000.0,0.000243,2]
[313635921,1707508248064,-11930.20587376,0.00024351,2]
[313635922,1707508248075,-6874.57,0.00024384,2]
[313635923,1707508248084,-3261.15,0.00024384,2]
[313635924,1707508248093,-2000.0,0.00024399,2]
[313635925,1707508248102,-200.0,0.00024399,2]
[313635926,1707508248112,-1000.0,0.000245,2]
[313635927,1707508248121,-609.73,0.00024513,2]
[313635928,1707508248130,-206.0,0.00024522,4]
[313635929,1707508248140,-500.0,0.00024552,2]
[313635930,1707508248149,-2000.0,0.00024643,2]
[313635931,1707508248159,-250.0,0.00024658,2]
[313635932,1707508248168,-200.0,0.00024661,2]
[313635933,1707508248179,-164.96,0.00024678,2]
[313635934,1707508248187,-817.43,0.000249,2]